{"text_format":"3","workbook":"xlsx","n_sheets":13,"sheets":["Bắt đầu","Thông tin cơ bản","Giới thiệu về các Hàm","Hàm AVERAGE","Hàm MIN & MAX","Ngày & Giờ","Kết hợp văn bản và số","Câu lệnh IF","HÀM VLOOKUP","Hàm Có điều kiện","Trình hướng dẫn Hàm","Lỗi Công thức","Tìm hiểu thêm"],"not_rendered":{"images":30,"defined_names":21},"read":"whole","date_system":"1900"}

{"sheet":"Bắt đầu","index":0,"n_rows":4,"n_cols":1,"rows_kept":4}
[]
["Bắt đầu với công thức"]
["Chỉ trong vài bước, bạn sẽ nhanh chóng thành thạo việc dựng công thức và hàm trong Excel, ứng dụng bảng tính mạnh mẽ nhất thế giới."]
["Lên đầu trang bằng cách nhấn CTRL+HOME. Để bắt đầu chuyến khám phá, hãy nhấn CTRL+PAGE DOWN."]

{"sheet":"Thông tin cơ bản","index":1,"n_rows":43,"n_cols":10,"rows_kept":43}
["Thông tin cơ bản: thực hiện các phép toán với Excel"]
["Bạn có thể Cộng, Trừ, Nhân và Chia trong Excel mà không cần sử dụng bất kỳ hàm tích hợp sẵn nào. Bạn chỉ cần sử dụng một số toán tử cơ bản: +, -, *, /. Tất cả công thức đều bắt đầu bằng dấu bằng (=).\n",null,"Số sẽ sử dụng:",null,"Phép toán:","Công thức:","Câu trả lời:"]
["Để Cộng, chọn ô F3, nhập =C3 + C4 rồi nhấn Enter. \n",null,1,null,"Cộng (+) ",null,{"$f":"C3+C4","v":3}]
["Để trừ, chọn ô F4, nhập =C3-C4 rồi nhấn Enter. ",null,2,null,"Trừ (-) ",null,{"$f":"C3-C4","v":-1}]
["Để Nhân, chọn ô F5, nhập =C3*C4 rồi nhấn Enter.\n",{"$nulls":3},"Nhân (*) ",null,{"$f":"C3*C4","v":2}]
["Để Chia, chọn ô F6, nhập =C3/C4 rồi nhấn Enter.\n",{"$nulls":3},"Chia (/) ",null,{"$f":"C3/C4","v":0.5}]
["Hãy xem thử: thay đổi số trong ô C3 và C4 và xem kết quả công thức tự động thay đổi.",{"$nulls":3},"Lũy thừa (^) ",null,{"$f":"C3^C4","v":1}]
["MẸO TẶNG THÊM: Bạn có thể tính lũy thừa của giá trị bằng cách sử dụng ký hiệu carat (^), như =A1^A2. Nhập ký hiệu này bằng cách nhấn Shift + 6. Trong ô F7, nhập =C3^C4."]
["Khám phá bên dưới để biết thêm chi tiết"]
["Bước tiếp theo"]
["Tìm hiểu thêm về công thức, ô và dải ô"]
["Excel được tạo thành từ nhiều ô riêng lẻ được nhóm vào hàng và cột. Hàng được đánh số còn cột được đánh chữ. Có trên 1 triệu hàng và 16.000 cột, đồng thời, bạn có thể đặt công thức và hàm vào bất kỳ ô nào trong số đó. \n"]
["Công thức có thể chứa tham chiếu ô, phạm vi tham chiếu ô, toán tử và hằng số. Tất cả các ví dụ sau đây đều là ví dụ về công thức:\n\n=A1+B1\n=10+20\n=SUM(A1:A10)\n\n"]
["Bạn sẽ nhận thấy rằng trong ví dụ thứ ba của chúng tôi ở bên trên, chúng tôi đã sử dụng hàm SUM. Hàm là một lệnh tích hợp sẵn có chức năng lấy một hoặc nhiều giá trị, tính toán chúng theo cách nhất định và trả về một kết quả. Ví dụ: hàm SUM sẽ lấy tham chiếu ô hoặc dải ô do bạn xác định, rồi tính tổng của các ô đó. Trong ví dụ này, hàm này lấy các ô từ A1 đến ô A10 rồi tính tổng của các ô đó. Excel có trên 400 hàm, bạn có thể khám phá các hàm này trên tab Công thức.\n"]
["Các công thức có hàm bắt đầu bằng dấu bằng, sau đó là tên hàm rồi đến các tham đối (giá trị mà hàm sử dụng để tính toán), tất cả được đặt trong dấu ngoặc đơn. \n"]
["Bạn xác nhận công thức bằng cách nhấn Enter. Khi làm vậy, công thức sẽ được tính toán và kết quả sẽ được hiển thị trong ô. Để tự mình xem công thức đó, bạn có thể nhìn vào thanh công thức bên dưới Dải băng hoặc nhấn F2 để vào chế độ Soạn thảo, nơi bạn sẽ thấy công thức trong ô. Nhấn Enter một lần nữa để hoàn thiện công thức và tính toán kết quả.\n\n"]
["Một số giải thích về công thức"]
["=10+20 là công thức, trong đó 10 và 20 là hằng số còn ký hiệu + là toán tử."]
["=SUM(A1:A10) là công thức, trong đó, SUM là tên hàm, dấu ngoặc đơn mở và đóng chứa các tham đối của công thức, còn A1:A10 là dải ô cho hàm."]
["=SUM(A1:A10;C1:C10) là công thức, trong đó, SUM là tên hàm, dấu ngoặc đơn mở và đóng chứa các tham đối của công thức, còn A1:A10;C1:C10 là các dải ô cho hàm."]
["ĐIỀU CẦN BIẾT: Hằng số là giá trị bạn nhập trong ô hoặc công thức. Dù =10+20 có thể được tính toán tương tự như =A1+B1, hằng số không phải là cách tính hiệu quả. Tại sao vậy? Vì bạn không thể dễ dàng nhìn thấy hằng số mà không chọn ô rồi tìm đến hằng số đó. Việc này có thể gây khó khăn cho việc thay đổi về sau. Sẽ dễ dàng hơn nếu đặt hằng số của bạn vào trong ô, tại đó, bạn có thể dễ dàng điều chỉnh và tham chiếu các số này trong công thức của bạn.\n\nVí dụ: Chọn ô màu vàng có số 12 bên dưới. Bạn sẽ thấy chúng tôi đã sử dụng hàm SUM với một dải ô. Chúng tôi không nhập trong \"4\" hoặc \"8\" trực tiếp vào công thức. \n"]
["Trước đó"]
["Tiếp theo"]
["Xem thêm thông tin trên web"]
["Sử dụng Excel làm máy tính tay"]
["Tổng quan về công thức trong Excel"]
["Các hàm Excel (theo thể loại) "]
["Các hàm Excel (theo thứ tự bảng chữ cái) "]
["Đào tạo Excel trực tuyến miễn phí"]
{"$rows_empty":10}
[{"$nulls":9},"Giá trị"]
[{"$nulls":9},4]
[{"$nulls":9},8]
[{"$nulls":9},{"$f":"SUM(J41:J42)","v":12}]

{"sheet":"Giới thiệu về các Hàm","index":2,"n_rows":51,"n_cols":7,"rows_kept":51}
["Giới thiệu về các hàm"]
["Hàm cung cấp cho bạn khả năng làm nhiều việc khác nhau, như thực hiện các phép tính toán học, tra cứu giá trị hoặc thậm chí tính toán ngày và thời gian. Hãy thử một vài cách cộng giá trị bằng hàm SUM.",null,"Trái_cây","Số lượng",null,"Thịt","Số lượng"]
["Bên dưới cột Số lượng cho Trái_cây (ô D7), hãy nhập =SUM(D3:D6) hoặc nhập =SUM ( rồi chọn dải ô bằng chuột và nhấn Enter. Công thức này sẽ tính tổng các giá trị trong ô D3, D4, D5 và D6. Câu trả lời của bạn sẽ là 170.\n",null,"Táo",50,null,"Thịt bò",50]
["Bây giờ, hãy thử Tự động tính tổng. Chọn ô bên dưới cột dành cho Thịt (ô G7), rồi đi đến Công thức > Tự động tính tổng > chọn SUM. Bạn sẽ thấy Excel tự động nhập công thức cho bạn. Nhấn Enter để xác nhận. Tính năng Tự động tính tổng chứa tất cả các hàm phổ biến nhất.\n",null,"Cam",20,null,"Thịt gà",30]
["Đây là lối tắt bàn phím hữu dụng. Chọn ô D15, rồi nhấn Alt =, sau đó nhấn Enter. Thao tác này sẽ tự động nhập hàm SUM cho bạn.",null,"Chuối",60,null,"Thịt heo",10]
["Khám phá bên dưới để biết thêm chi tiết",null,"Chanh",40,null,"Cá",50]
["MẸO TẶNG THÊM\nHãy thử hàm COUNT bằng cách sử dụng bất kỳ phương pháp nào bạn đã thử. Hàm COUNT đếm số ô trong một dải ô có chứa số.",null,"SUM > ",{"$f":"SUM(D3:D6)","v":170},null,"SUM > "]
["Bước tiếp theo"]
["Tìm hiểu thêm về hàm",null,"Mặt hàng","Số lượng",null,"Mặt hàng","Số lượng"]
["Đi đến tab Công thức và duyệt qua Thư viện Hàm, nơi các hàm được liệt kê theo loại, như Văn bản, Ngày & Thời gian, v.v.. Chèn Hàm sẽ cho phép bạn tìm hàm theo tên và cho chạy trình hướng dẫn hàm có thể giúp bạn dựng công thức của bạn. \n\nKhi bắt đầu nhập tên hàm sau khi nhấn =, Excel sẽ cho chạy Intellisense, tính năng này sẽ liệt kê tất cả các hàm bắt đầu bằng chữ cái bạn nhập. Khi tìm thấy hàm bạn muốn, hãy nhấn Tab và Excel sẽ tự động hoàn tất tên hàm cũng như nhập dấu ngoặc đơn mở cho bạn. Excel cũng sẽ hiển thị các tham đối tùy chọn và bắt buộc. \n\n\n\nBây giờ, hãy xem cấu trúc một số hàm. Hàm SUM có cấu trúc như sau:",null,"Bánh mì",50,null,"Bánh mì",50]
["Cách tính toán của hàm SUM như sau: hàm này trả về tổng của mọi giá trị trong ô D35 đến D38 và mọi ô của cột H. SUM là tên hàm, D35:D38 là tham đối dải ô đầu tiên, gần như luôn là bắt buộc và H:H là tham đối dải ô thứ hai, được phân tách bằng dấu phẩy. Bây giờ, hãy dùng thử hàm không yêu cầu bất kỳ tham đối nào.\n",null,"Bánh rán",100,null,"Bánh rán",100]
["Hàm TODAY trả về ngày hôm nay. Hàm này sẽ tự động cập nhật khi Excel tính toán lại.",null,"Bánh quy",40,null,"Bánh quy",40]
["HÃY THỬ XEM\nChọn các ô này. Sau đó, ở góc dưới bên phải của cửa sổ Excel, hãy tìm hàm Tổng: 170 trong thanh ở bên dưới. Thanh này có tên là Thanh Trạng thái và đây là cách khác để nhanh chóng tìm tổng cùng các chi tiết về ô hoặc dải ô đã chọn. ",null,"Bánh ngọt",50,null,"Bánh ngọt",50]
["CHI TIẾT QUAN TRỌNG\nBấm đúp vào ô này. Bạn sẽ thấy số 100 ở cuối. Mặc dù có thể nhập số vào công thức như thế này nhưng bạn không nên làm vậy nếu không thật sự cần thiết. Số này được gọi là hằng số và sự có mặt của hằng số trong công thức thường bị chúng ta dễ dàng bỏ quên. Thay vào đó, bạn nên tham chiếu đến một ô khác, như ô F51 chẳng hạn. Như vậy thì hằng số sẽ không bị ẩn bên trong công thức và bạn sẽ dễ dàng nhìn thấy. ",null,"Bánh nướng",20,null,"Bánh nướng",20]
["Xem thêm thông tin trên web",null,"SUM > ",null,null,"COUNT >"]
["Toàn bộ về hàm SUM"]
["Sử dụng Tự động tính tổng để tính tổng nhiều số"]
["Toàn bộ về hàm COUNT"]
["Đào tạo Excel trực tuyến miễn phí"]
["Lên đầu trang"]
["Bước tiếp theo"]
{"$rows_empty":12}
[null,null,"Trái_cây","Số lượng"]
[null,null,"Táo",50]
[null,null,"Cam",20]
[null,null,"Chuối",60]
[null,null,"Chanh",40]
[null,null,"SUM > ",{"$f":"SUM(D35:D38)","v":170}]
[]
[]
[]
[]
[null,null,"Mặt hàng","Số lượng"]
[null,null,"Xe hơi",20]
[null,null,"Xe tải",10]
[null,null,"Xe đạp",10]
[null,null,"Giày trượt",40]
[]
[{"$nulls":3},"Tổng:",null,"Giá trị bổ sung","Tổng Mới"]
[{"$nulls":3},{"$f":"SUM(D45:D48,100)","v":180},null,100,{"$f":"SUM(D45:D48,F51)","v":180}]

{"sheet":"Hàm AVERAGE","index":3,"n_rows":46,"n_cols":7,"rows_kept":46}
["Hàm AVERAGE"]
["Sử dụng hàm AVERAGE để tính trung bình nhiều số trong một dải ô.",null,"Trái_cây","Số lượng",null,"Thịt","Số lượng"]
["Chọn ô D7 rồi sử dụng Tự động tính tổng để thêm hàm AVERAGE.",null,"Táo",50,null,"Thịt bò",50]
["Bây giờ, hãy chọn ô G7 rồi nhập thủ công hàm AVERAGE bằng cách nhập =AVERAGE(G3:G6). ",null,"Cam",20,null,"Thịt gà",30]
["Trong ô D15, bạn có thể sử dụng Tự động tính tổng hoặc sử dụng chức năng nhập để nhập hàm AVERAGE khác. ",null,"Chuối",60,null,"Thịt heo",10]
["HÃY THỬ XEM\nChọn phạm vi số bất kỳ rồi tìm trong Thanh Trạng thái để xem ngay giá trị Trung bình.\n",null,"Chanh",40,null,"Cá",50]
["Kích hoạt trang tính trước đó",null,"AVERAGE >",null,null,"AVERAGE >"]
["Đi đến thẻ trang tính tiếp theo"]
["MẸO TẶNG THÊM\nHãy thử sử dụng MEDIAN hoặc MODE ở đây. \n\nMEDIAN cung cấp cho bạn giá trị ở giữa bộ dữ liệu còn \nMODE cho bạn giá trị xuất hiện nhiều nhất.\n",null,"Mặt hàng","Số lượng",null,"Mặt hàng","Số lượng"]
["Liên kết để xem thêm thông tin trên web",null,"Bánh mì",50,null,"Bánh mì",50]
["Chọn để tìm hiểu toàn bộ về hàm AVERAGE trên web",null,"Bánh rán",100,null,"Bánh rán",100]
["Chọn để tìm hiểu toàn bộ về hàm MEDIAN trên web",null,"Bánh quy",40,null,"Bánh quy",40]
["Chọn để tìm hiểu toàn bộ về hàm MODE trên web",null,"Bánh ngọt",50,null,"Bánh ngọt",50]
["Chọn để tìm hiểu về nội dung đào tạo Excel miễn phí trên web",null,"Bánh nướng",20,null,"Bánh nướng",20]
[null,null,"AVERAGE >"]
{"$rows_empty":13}
[null,null,"Tìm hiểu thêm về hàm SUM "]
[null,null,"Trong một số mẹo ở trên, chúng tôi đã hướng dẫn bạn cách sử dụng hàm SUM. Sau đây chúng tôi sẽ cung cấp thêm chi tiết về hàm này."]
[null,null,"Các ô từ C37 đến D41 chứa dữ liệu trong hai cột: Trái cây và Số tiền. "]
[null,null,"Công thức trong ô D42: = SUM(D38:D41)."]
[null,null,"Cách tính toán của hàm SUM trong ô D42 như sau: Tính tổng giá trị trong các ô D38, D39, D40 và D41."]
[null,null,"Còn đây là một cách khác để sử dụng hàm này:"]
[null,null,"Các ô từ C47 đến D48 chứa dữ liệu trong hai cột: Mặt hàng và Số lượng. "]
[]
[]
[]
[]
[]
[null,null,"Xem thêm thông tin trên web"]
[null,null,"Toàn bộ về hàm SUM"]
[null,null,"Toàn bộ về hàm SUMIF"]
[null,null,"Sử dụng Excel làm máy tính tay"]
[null,null,"Đào tạo Excel trực tuyến miễn phí"]
[null,null,"Lên đầu trang bằng cách nhấn CTRL+HOME. Để chuyển sang bước tiếp theo, hãy nhấn CTRL+PAGE DOWN."]

{"sheet":"Hàm MIN & MAX","index":4,"n_rows":15,"n_cols":7,"rows_kept":15}
["Hàm MIN và MAX"]
["Sử dụng hàm MIN để lấy số nhỏ nhất trong một dải ô.",null,"Trái cây","Số lượng",null,"Thịt","Số lượng"]
["Sử dụng hàm MAX để lấy số lớn nhất trong một dải ô.",null,"Táo",50,null,"Thịt bò",50]
["Bấm vào ô D7 rồi sử dụng Trình hướng dẫn Tự động tính tổng để thêm hàm MIN.\n",null,"Cam",20,null,"Thịt gà",30]
["Bây giờ, hãy chọn ô G7 rồi nhập thủ công hàm MAX bằng cách nhập =MAX(D3:D6).\n",null,"Chuối",60,null,"Thịt heo",10]
["Trong ô D15, bạn có thể sử dụng Trình hướng dẫn Tự động tính tổng hoặc nhập thủ công để nhập hàm MIN hoặc MAX. \n",null,"Chanh",40,null,"Cá",50]
["Xem thêm thông tin trên web\n",null,"MIN >",null,null,"MAX >"]
["Toàn bộ về hàm MIN"]
["Toàn bộ về hàm MAX",null,"Mặt hàng","Số lượng",null,"Mặt hàng","Số lượng"]
["Đào tạo Excel trực tuyến miễn phí",null,"Bánh mì",50,null,"Bánh mì",50]
["ĐIỀU CẦN BIẾT\nBạn có thể sử dụng hàm MIN hoặc hàm MAX với nhiều dải ô hoặc giá trị để hiển thị giá trị lớn hoặc nhỏ hơn của các giá trị này, như =MIN(A1:A10;B1:B10) hoặc =MAX(A1:A10;B1), trong đó, B1 chứa một giá trị ngưỡng, như 10, trong trường hợp này, công thức sẽ không bao giờ trả về kết quả nhỏ hơn 10.\n",null,"Bánh rán",100,null,"Bánh rán",100]
[null,null,"Bánh quy",40,null,"Bánh quy",40]
[null,null,"Bánh ngọt",50,null,"Bánh ngọt",50]
[null,null,"Bánh nướng",20,null,"Bánh nướng",20]
[null,null,"MIN hoặc MAX >",{"$nulls":3},{"$f":"MIN(G10:G14,10)","v":10}]

{"sheet":"Ngày & Giờ","index":5,"n_rows":47,"n_cols":6,"rows_kept":47,"merged":[[4,2,4,3],[26,2,26,3],[30,2,30,3],[44,2,44,3]]}
["Các hàm về Ngày"]
["Excel có thể cung cấp cho bạn ngày hiện tại, dựa trên cài đặt khu vực của máy tính bạn. Bạn cũng có thể cộng và trừ Ngày."]
["Hãy xem hàm TODAY, là hàm cho bạn biết ngày Hôm nay. Đây là hàm trực tiếp, tức là hàm không cố định, do đó, khi bạn mở sổ làm việc vào ngày mai, giá trị sẽ là ngày mai. Nhập =TODAY() vào ô D6. \n"]
["Trừ Ngày - Nhập sinh nhật sắp tới của bạn theo định dạng D/M/YY  vào ô D7 và xem Excel cho bạn biết số ngày còn lại là bao nhiêu nữa bằng cách sử dụng =D7-D6 trong ô D8.\n"]
["Cộng Ngày - Giả sử bạn muốn biết hóa đơn đến hạn vào ngày nào hoặc bạn cần trả sách cho thư viện vào lúc nào. Bạn có thể cộng ngày vào một ngày cụ thể để tìm hiểu. Trong ô D10, hãy nhập một số ngày ngẫu nhiên. Trong ô D11, chúng tôi đã thêm =D6+D10 để tính ngày đến hạn từ ngày hôm nay.\n",null,"Các hàm về Ngày"]
["ĐIỀU CẦN BIẾT\nExcel sẽ lưu giữ ngày và thời gian dựa trên số ngày bắt đầu từ 01/01/1900. Thời gian được lưu giữ dưới dạng thập phân của một ngày tính đến mức phút. Do đó ngày 01/01/2017 12:30 thực ra được lưu trữ dưới dạng 42736.5208. Nếu Thời gian hoặc Ngày được hiển thị dưới dạng số như vậy thì bạn có thể nhấn Ctrl + 1 > Số > chọn định dạng Ngày hoặc Thời gian. ",null,"Ngày hôm nay:",null,null,{"$f":"IF(D6=TODAY(),\"Bạn đã thực hiện đúng!\",\"\")","v":""}]
["CHI TIẾT QUAN TRỌNG\nNếu bạn không muốn Excel hiển thị số âm vì chưa nhập sinh nhật của, bạn có thể sử dụng hàm IF như sau: = =IF(D7=\"\";\"\";D7-D6), tức là, \"NẾU D7 không có gì cả thì không hiển thị gì cả, còn nếu D7 có gì đó thì hiển thị D7 trừ D6\".\n",null,"Sinh nhật của bạn:"]
["Các hàm về Thời gian",null,"Số ngày cách ngày sinh nhật của bạn:",{"$f":"D7-D6","v":0}]
["Excel có thể cho bạn biết thời gian hiện tại, dựa trên cài đặt khu vực của máy tính bạn. Bạn cũng có thể cộng và trừ thời gian. Ví dụ, bạn có thể sẽ cần theo dõi số giờ công mà một nhân viên đã làm việc mỗi tuần đồng thời tính toán tiền lương và giờ làm thêm của họ.\n"]
["Trong ô D28, nhập =NOW(), công thức này sẽ cung cấp thời gian hiện tại và sẽ cập nhật mỗi khi Excel tính toán. Nếu bạn cần thay đổi định dạng Thời gian, bạn có thể đi tới Ctrl + 1 > Số > Thời gian > Chọn định dạng bạn muốn.\n",null,"Ngày kỳ gia hạn:"]
["Cộng giờ giữa nhiều thời điểm - Trong ô D36, chúng tôi đã nhập =((D35-D32)-(D34-D33))*24, công thức này sẽ tính toán thời điểm bắt đầu và kết thúc của một người, sau đó trừ đi thời gian họ đã dành để đi ăn trưa. Đoạn *24 ở cuối công thức sẽ chuyển đổi phần thập phân của ngày mà Excel đọc thành giờ. Dù vậy, Bạn sẽ cần định dạng ô dưới dạng Số. Để thực hiện việc này, hãy đi đến Trang chủ > Định dạng > Ô (Ctrl + 1) > Số > Số > 2 số thập phân.\n\n",null,"Hóa đơn đến hạn vào:",{"$f":"D6+D10","v":"00:00:00"}]
["Cách tính toán của công thức này như sau: \"Lấy Giờ Vào trừ Giờ Ra, sau đó trừ thời gian Đi Ăn trưa/Ăn trưa Về, rồi nhân với 24 để quy đổi thời gian theo dạng thập phân của Excel thành giờ\" tức là = ((Giờ Vào-Giờ Ra)-(Ăn trưa Về - Đi Ăn trưa))*24."]
["Trước đó"]
["Tiếp theo"]
["Xem thêm thông tin trên web"]
["Toàn bộ về hàm TODAY"]
["Toàn bộ về hàm NOW"]
["Toàn bộ về hàm DATE"]
["Đào tạo Excel trực tuyến miễn phí"]
{"$rows_empty":7}
[null,null,"Các hàm về Thời gian"]
[null,null,"Thời gian Hiện tại:"]
[]
[]
[null,null,"Số giờ Đã làm việc Hàng ngày"]
[null,null,"Giờ Vào:","08:00:00"]
[null,null,"Đi Ăn trưa:","12:00:00"]
[null,null,"Ăn trưa Về:","13:00:00"]
[null,null,"Giờ Ra:","17:00:00"]
[null,null,"Tổng số giờ:",{"$f":"((D35-D32)-(D34-D33))*24","v":8.000000000000002}]
{"$rows_empty":8}
[null,null,"Ngày & giờ tĩnh"]
[null,null,"Ngày:","2017-09-27"]
[null,null,"Thời gian:","08:52:00"]

{"sheet":"Kết hợp văn bản và số","index":6,"n_rows":37,"n_cols":6,"rows_kept":37,"merged":[[26,2,26,3],[30,2,30,3],[34,2,34,3]]}
["Ghép văn bản từ các ô khác nhau"]
["Nhiều khi, trong Excel, bạn muốn ghép văn bản nằm trong các ô khác nhau. Có một ví dụ sau rất phổ biến, đó là khi bạn có tên và họ, đồng thời, muốn ghép lại chúng thành tên, họ hoặc tên đầy đủ. May thay, Excel cho phép chúng ta thực hiện điều đó bằng dấu và (&), bạn có thể nhập dấu này bằng cách nhấn Shift + 7.\n",null,"Tên","Họ","Tên, Họ","Tên đầy đủ"]
["Trong ô E3, nhập =D3&C3 để ghép họ và tên. \n",null,"Nancy","Smith",{"$f":"D3&\", \"&C3","v":"Smith, Nancy"},{"$f":"C3&\" \"&D3","v":"Nancy Smith"}]
["Dù vậy, tên SmithNancy có vẻ không đúng lắm. Chúng ta cần thêm dấu phẩy và dấu cách. Để thực hiện điều đó, chúng ta sẽ sử dụng dấu ngoặc kép để tạo ra chuỗi văn bản mới. Lần này, hãy nhập =D3&\", \"&C3. Phần & \",\" & cho phép chúng ta ghép dấu phẩy và khoảng trắng với văn bản trong các ô.\n",null,"Andy","North"]
["Để tạo tên đầy đủ, chúng ra ghép tên và họ nhưng sử dụng một dấu cách mà không cần dấu phẩy. Trong F3, nhập =C3&\" \"&D3.\n",null,"Jan","Kotas"]
["Khám phá bên dưới để biết thêm chi tiết",null,"Mariya","Jones"]
["Tiếp theo",null,"Steven","Thorpe"]
["Kết hợp văn bản và số",null,"Michael","Neipper"]
["Bây giờ, chúng ta sẽ sử dụng dấu & để ghép văn bản và số, chứ không chỉ văn bản và văn bản\n\nHãy xem ô C28:D29. Bạn có thấy ngày và thời gian nằm ở các ô riêng biệt không? Bạn có thể ghép chúng lại bằng biểu tượng & giống như bạn sẽ thấy trong ô C32:C33, tuy nhiên, kết quả có vẻ không ổn đúng không? Rất tiếc, trong trường hợp này, do không biết bạn muốn định dạng số như thế nào nên Execel chuyển chúng xuống định dạng cơ bản nhất, tức là các ngày theo Sê-ri. Chúng ta cho Excel biết rõ cách định dạng phần số của công thức, để Excel hiển thị theo cách bạn muốn trong chuỗi văn bản kết quả. Bạn có thể thực hiện điều đó với hàm TEXT và mã định dạng.",null,"Robert","Zare"]
["Trong ô C36, nhập =C28&\" \"&TEXT(D28;\"D/M/YY\"). D/M/YY là mã định dạng Việt Nam cho Ngày/Tháng/Năm, như 25/09/2017.",null,"Yvonne","McKay"]
["Trong ô C37, nhập =C29&\" \"&TEXT(D29;\"H:MM\"). H:MM là mã định dạng Việt Nam cho Giờ:Phút, lnhư 1:30."]
["HÃY THỬ XEM\nCông thức, đặc biệt là các công thức dài, đôi khi có thể sẽ khó đọc, tuy nhiên, bạn có thể ngắt các phần bằng dấu cách như sau:\n\n=C28 & \" \" & TEXT(D28;\"DD/MM/YYYY\")"]
["ĐÁNG KHÁM PHÁ\nNếu bạn không biết cần sử dụng mã định dạng nào, bạn có thể sử dụng Ctrl+1 > Số để định dạng ô bất kỳ theo cách bạn muốn. Sau đó, chọn tùy chọn Tùy chỉnh. Bạn có thể sao chép mã định dạng được hiển thị vào lại công thức của bạn."]
["Xem thêm thông tin trên web"]
["Toàn bộ về hàm TEXT"]
["Kết hợp văn bản và số"]
["Đào tạo Excel trực tuyến miễn phí"]
{"$rows_empty":9}
[null,null,"Sử dụng văn bản & số"]
[null,null,"Ngày hôm nay:",{"$f":"TODAY()","v":"2021-10-19"}]
[null,null,"Thời gian hiện tại:",{"$f":"NOW()","v":44488.48975439815}]
[]
[null,null,"Kết hợp văn bản & số"]
[null,null,{"$f":"C28&\" \"&D28","v":"Ngày hôm nay: 44488"}]
[null,null,{"$f":"C29&\" \"&D29","v":"Thời gian hiện tại: 44488.4897543981"}]
[]
[null,null,"Định dạng văn bản & số"]
[null,null,{"$f":"C28 &\" \"& TEXT(D28,\"D/M/YY\")","v":"Ngày hôm nay: 19/10/21"}]
[null,null,{"$f":"C29&\" \"&TEXT(D29,\"H:MM\")","v":"Thời gian hiện tại: 11:45"}]

{"sheet":"Câu lệnh IF","index":7,"n_rows":37,"n_cols":6,"rows_kept":37,"merged":[[7,2,7,3]]}
["Câu lệnh IF"]
["Câu lệnh IF cho phép bạn thực hiện phép so sánh lô-gic giữa các điều kiện. Câu lệnh IF thường cho biết rằng nếu một điều kiện là đúng thì sẽ thực hiện thao tác nào đó, còn nếu không thì thực hiện thao tác khác. Công thức này có thể trả về văn bản, giá trị hoặc thậm chí nhiều phép tính khác."]
["Trong ô D9, nhập =IF(C9=\"Táo\";TRUE;FALSE). Câu trả lời đúng là TRUE. \n"]
["Sao chép ô D9 sang ô D10. Câu trả lời ở đây sẽ là FALSE, vì cam không phải là táo.\n"]
["Hãy thử một ví dụ khác bằng cách xem công thức trong ô D12. Bạn hãy bắt đầu với =IF(C12<100;\"Nhỏ hơn 100\";\"Lớn hơn hoặc bằng 100\"). Chuyện gì sẽ xảy ra nếu bạn nhập một số lớn hơn 100 vào ô C12?\n"]
["CHI TIẾT QUAN TRỌNG\nTRUE và FALSE không giống các từ khác trong công thức Excel ở chỗ các từ này không cần phải để trong dấu ngoặc kép và Excel sẽ tự động viết hoa các từ này. Số cũng không cần phải để trong dấu ngoặc kép. Văn bản thường, như Có hoặc Không cần phải để trong dấu ngoặc kép như sau: \n=IF(C9=\"Táo\";\"Có\";\"Không\")"]
["Khám phá bên dưới để biết thêm chi tiết"]
["Tiếp theo",null,"Câu lệnh IF"]
["Câu lệnh IF với hàm khác",null,"Táo"]
["Câu lệnh IF cũng có thể buộc thực hiện thêm các phép tính khác nếu đáp ứng điều kiện cụ thể. Ở đây, chúng ta sẽ đánh giá một ô để xem Thuế Doanh thu có bị tính hay không, rồi tính toán con số này nếu điều kiện đúng.\n",null,"Cam"]
["Trong ô F33, chúng tôi đã nhập =IF(E33=\"Có\";F31*Thuế_Doanh_thu;0), trong đó, chúng tôi thiết lập Thuế_Doanh_thu dưới dạng Dải ô đã đặt tên với giá trị là 0,0825. Công thức của chúng ta cho biết nếu ô E33 là Có thì nhân ô F31 với Thuế_Doanh_thu, nếu không thì trả về số 0.\n\nThử thay đổi Có thành Không trong ô E33 để xem phép tính có thay đổi hay không."]
["Tiếp theo, chúng tôi đã thêm một câu lệnh IF để tính toán phí vận chuyển nếu cần. Trong ô F35, bạn sẽ thấy =IF(E35=\"Có\";SUM(D28:D29)*1.25;0). Công thức này cho biết \"Nếu ô E35 là Có thì lấy tổng của cột Số_lượng trong bảng ở trên, rồi nhân với 1,25, nếu không thì trả về 0\".\n",null,50,{"$f":"IF(C12<100,\"Nhỏ hơn 100\",\"Lớn hơn hoặc bằng 100\")","v":"Nhỏ hơn 100"}]
["Tiếp theo, hãy thay đổi 1,25 trong công thức ở ô F35 thành \"Vận_chuyển\". Khi bạn bắt đầu nhập, tính năng tự động sửa của Excel sẽ tìm giá trị cho bạn. Khi tìm được, hãy nhấn Tab để nhập vào. Đây là Dải ô Đã đặt tên và chúng tôi đã nhập từ Công thức > Xác định Tên. Còn bây giờ, nếu bạn cần thay đổi chi phí vận chuyển, bạn chỉ phải thực hiện tại một vị trí, đồng thời, sẽ có thể sử dụng tên Vận_chuyển ở vị trí bất kỳ trong sổ làm việc.\n\n"]
["ĐIỀU CẦN BIẾT\nKhi tạo công thức, Excel sẽ tự động đặt đường viền có màu xung quanh mọi dải ô được tham chiếu trong công thức và các dải ô tương ứng trong công thức sẽ có được màu tương ứng. Bạn có thể thấy tính năng này nếu chọn ô F33 rồi nhấn F2 để chỉnh sửa công thức."]
["MẸO CỦA CHUYÊN GIA\nCác dải ô đã đặt tên cho phép bạn xác định các thuật ngữ hoặc giá trị ở một vị trí duy nhất, rồi tái sử dụng các thuật ngữ hoặc giá trị đó trong toàn bộ sổ làm việc. Bạn có thể xem toàn bộ các dải ô đã đặt tên trong sổ làm việc này bằng cách đi tới Công thức > Trình quản lý Tên. Bấm vào đây để tìm hiểu thêm.\n"]
["Trước đó"]
["Tiếp theo"]
["Xem thêm thông tin trên web"]
["Toàn bộ về hàm IF"]
["Toàn bộ về hàm IFS"]
["Câu lệnh IF nâng cao"]
["Đào tạo Excel trực tuyến miễn phí"]
[]
[]
[]
[]
[null,null,"Mặt hàng","Số_lượng","Chi phí","Tổng"]
[null,null,"Tiện ích",2,{"v":9.760711585683554,"d":"9.76 ₫"},{"$f":"'Câu lệnh IF'!$E$28:$E$29*'Câu lệnh IF'!$D$28:$D$29","v":{"v":19.521423171367108,"d":"19.52 ₫"}}]
[null,null,"Doohickey",3,{"v":3.4189202461080024,"d":"3.42 ₫"},{"$f":"'Câu lệnh IF'!$E$28:$E$29*'Câu lệnh IF'!$D$28:$D$29","v":{"v":10.256760738324008,"d":"10.26 ₫"}}]
[]
[{"$nulls":3},"Tổng",{"$f":"SUM('Câu lệnh IF'!$E$28:$E$29)","v":{"v":13.179631831791557,"d":"13.18 ₫"}},{"$f":"SUM('Câu lệnh IF'!F28:F29)","v":{"v":29.778183909691116,"d":"29.78 ₫"}}]
[]
[{"$nulls":3},"Thuế Doanh thu?","Có",{"$f":"IF(E33=\"Có\",F31*Thuế_Doanh_thu,0)","v":{"v":2.456700172549517,"d":"2.46 ₫"}}]
[]
[{"$nulls":3},"Vận chuyển?","Có",{"$f":"IF(E35=\"Có\",SUM(D28:D29)*1.25,0)","v":{"v":6.25,"d":"6.25 ₫"}}]
[]
[{"$nulls":3},"Tổng",null,{"$f":"SUM(F33,F31,F35)","v":{"v":38.48488408224063,"d":"38.48 ₫"}}]

{"sheet":"HÀM VLOOKUP","index":8,"n_rows":43,"n_cols":7,"rows_kept":43}
["HÀM VLOOKUP"]
["Hàm VLOOKUP là một trong các hàm được sử dụng rộng rãi nhất trong Excel (và cũng là một trong các hàm yêu thích của chúng tôi nữa!). Hàm VLOOKUP cho phép bạn tra cứu giá trị trong cột bên trái, rồi trả về thông tin trong cột khác ở bên phải nếu tìm thấy kết quả khớp. Hàm VLOOKUP cho biết:\n"]
[{"$f":"VLOOKUP(A1,B:C,2,FALSE)","v":{"$error":"#N/A"}}]
["Bạn muốn tìm gì?"]
["Nếu bạn tìm thấy, bạn muốn lấy giá trị cách bao nhiêu cột về bên phải?"]
["Bạn muốn tìm ở đâu?"]
["Bạn muốn có kết quả khớp chính xác hay gần đúng?"]
["Trong ô D22, nhập =VLOOKUP(C22;C17:D20;2;FALSE). Câu trả lời chính xác cho Táo là 50. Hàm VLOOKUP đã tìm cho giá trị Táo, rồi đã đi qua một cột ở bên phải và trả về số lượng.\n\n"]
["Bây giờ, bạn hãy tự mình thử trong mục Thịt, ở ô G22. Bạn sẽ có được kết quả là =VLOOKUP(F22;F17:G20;2;FALSE).\n\n"]
["THỬ NGHIỆM\nHãy thử chọn nhiều mục khác nhau từ danh sách thả xuống. Bạn sẽ thấy các ô kết quả ngay lập tức tự cập nhật giá trị mới."]
["Khám phá bên dưới để biết thêm chi tiết"]
["Tiếp theo"]
["Hàm VLOOKUP và #N/A"]
["Lúc nào cũng vậy, bạn sẽ gặp tình huống mà hàm VLOOKUP không thể tìm thấy những gì bạn yêu cầu và trả về lỗi (#N/A). Đôi khi, đó chỉ đơn giản là vì giá trị tra cứu không tồn tại hoặc có thể vì tham chiếu ô chưa có giá trị.\n"]
["Nếu bạn đã biết chắc rằng giá trị tra cứu của bạn có tồn tại nhưng muốn ẩn lỗi khi ô tra cứu là ô trống, bạn có thể sử dụng câu lệnh IF. Trong trường hợp này, chúng tôi sử dụng công thức VLOOKUP hiện có như thế này trong ô D43:\n\n=IF(C43=\"\";\"\";VLOOKUP(C43;C37:D41;2;FALSE))\n\nCông thức này cho biết rằng nếu ô C43 không có gì (\"\") thì không trả về gì cả, còn nếu có thì trả về kết quả của hàm VLOOKUP. Lưu ý rằng có dấu ngoặc đơn đóng thứ hai nằm ở cuối công thức. Dấu này sẽ kết thúc câu lệnh IF.\n"]
["Nếu bạn không chắc chắn giá trị tra cứu có tồn tại hay không nhưng vẫn muốn ngăn lỗi #N/A, bạn có thể sử dụng một hàm xử lý lỗi được gọi là hàm IFERROR vào ô G43: =IFERROR(VLOOKUP(F43;F37:G41;2;FALSE),\"\"). Hàm IFERROR cho biết nếu hàm VLOOKUP trả về kết quả hợp lệ thì hiển thị kết quả đó, nếu không thì không hiển thị gì cả (\"\"). Chúng tôi không hiển thị gì ở đây (\"\"), tuy nhiên, bạn cũng có thể sử dụng số (0,1, 2, v.v.) hoặc văn bản, như \"Công thức không chính xác\".\n",null,"Trái_cây","Số lượng",null,"Thịt","Số lượng"]
["CHI TIẾT QUAN TRỌNG\nHàm IFERROR được biết đến như trình xử lý lỗi trống, nghĩa là hàm này sẽ ngăn tất cả các lỗi mà công thức của bạn có thể đưa ra. Việc này có thể gây ra sự cố nếu Excel hiển thị thông báo cho biết rằng công thức của bạn có lỗi xác thực cần được khắc phục.\n\nQuy tắc ngầm định là không nên thêm hàm xử lý lỗi vào công thức của bạn cho đến khi bạn thực sự chắc chắn rằng các hàm này hoạt động đúng cách.",null,"Táo",50,null,"Thịt bò",50]
["Trước đó",null,"Cam",20,null,"Thịt gà",30]
["Tiếp theo",null,"Chuối",60,null,"Thịt heo",10]
["Xem thêm thông tin trên web",null,"Chanh",40,null,"Cá",50]
["Toàn bộ về hàm VLOOKUP"]
["Toàn bộ về hàm INDEX/MATCH",null,"Táo",null,null,"Thịt heo"]
["Toàn bộ về hàm IFERROR"]
["Sử dụng PivotTable để phân tích dữ liệu trong trang tính"]
["Đào tạo Excel trực tuyến miễn phí"]
{"$rows_empty":9}
[null,null,"Cách tính toán của hàm SUM trong ô D42 như sau: Tính tổng giá trị trong các ô D38, D39, D40 và D41."]
[null,null,"Mặt hàng","Số lượng",null,"Mặt hàng","Số lượng"]
[null,null,"Bánh mì",50,null,"Bánh mì",50]
[null,null,"Bánh rán",100,null,"Bánh rán",100]
[null,null,"Bánh quy",40,null,"Bánh quy",40]
[null,null,"Bánh ngọt",50,null,"Bánh ngọt",50]
[null,null,"Bánh nướng",20,null,"Bánh nướng",20]
[]
[{"$nulls":3},{"$f":"VLOOKUP(C43,C37:D41,2,FALSE)","v":{"$error":"#N/A"}},null,"Bánh",{"$f":"IFERROR(VLOOKUP(F43,F37:G41,2,FALSE),\"\")","v":""}]

{"sheet":"Hàm Có điều kiện","index":9,"n_rows":123,"n_cols":34,"rows_kept":123}
["Hàm có điều kiện - SUMIF"]
["Hàm có điều kiện cho phép bạn tính tổng, trung bình, đếm hay lấy giá trị nhỏ nhất hoặc lớn nhất của một dải ô theo điều kiện cụ thể hoặc tiêu chí do bạn chỉ định. Chẳng hạn như, trong số tất cả các trái cây trong danh sách, có bao nhiêu quả táo? Hoặc số lượng cam thuộc loại Florida?",null,"Trái_cây","Số lượng",null,"Trái_cây","Loại","Số lượng",{"$nulls":17},"Trái_cây",null,"Táo",null,"Cam",null,"Chuối",null,"Chanh"]
["Hàm SUMIF cho phép bạn tính tổng trong một dải ô theo một tiêu chí cụ thể bạn tìm kiếm trong dải ô khác, ví dụ như số lượng Táo bạn có. Chọn ô D17 rồi nhập =SUMIF(C3:C14;C17;D3:D14). Hàm SUMIF có cấu trúc như sau:",null,"Táo",50,null,"Táo","Fuji",50,{"$nulls":17},"Táo",null,"Fuji",null,"Florida",null,"Cavendish",null,"Rough"]
[{"$f":"SUMIF(C3:C14,C17,D3:D14)","v":150},null,"Cam",20,null,"Cam","Florida",20,{"$nulls":17},"Cam",null,"Honeycrisp",null,"Navel",null,"Lady Finger",null,"Eureka"]
["Bạn muốn xem dải ô nào?",null,"Chuối",60,null,"Chuối","Cavendish",60,{"$nulls":17},"Chuối"]
["Bạn muốn tìm kiếm giá trị (văn bản hoặc số) nào?",null,"Chanh",40,null,"Chanh","Rough",40,{"$nulls":17},"Chanh"]
["Đối với từng kết quả khớp được tìm thấy, bạn muốn tính tổng dải ô nào?",null,"Táo",50,null,"Táo","Honeycrisp",50]
["Hàm SUMIFS tương tự như hàm SUMIF, chỉ khác ở chỗ hàm này cho phép bạn dùng nhiều tiêu chí. Vì vậy, trong ví dụ này, bạn có thể tìm đồng thời cả Trái_cây lẫn Loại, thay vì chỉ bằng Trái_cây. Chọn ô H17 và nhập =SUMIFS(H3:H14;F3:F14;F17;G3:G14;G17). Hàm SUMIFS có cấu trúc như sau:\n",null,"Cam",20,null,"Cam","Navel",20]
[{"$f":"SUMIFS(H3:H14,F3:F14,F17,G3:G14,G17)","v":20},null,"Chuối",60,null,"Chuối","Lady Finger",60]
["Bạn muốn tính tổng dải ô nào?",null,"Chanh",40,null,"Chanh","Eureka",40]
["Đây là dải ô đầu tiên để tìm bên trong nhằm lấy kết quả khớp",null,"Táo",50,null,"Táo","Honeycrisp",50]
["Đây là tiêu chí dành cho kết quả khớp đầu tiên",null,"Cam",20,null,"Cam","Navel",20]
["Đây là dải ô thứ hai để tìm bên trong nhằm lấy kết quả khớp",null,"Chuối",60,null,"Chuối","Cavendish",60]
["Đây là tiêu chí dành cho kết quả khớp thứ hai",null,"Chanh",40,null,"Chanh","Eureka",40]
["MẸO CỦA CHUYÊN GIA\nMỗi ô trong số các ô Trái_cây và Loại có một danh sách thả xuống, trong đó, bạn có thể chọn các loại trái cây khác nhau. Hãy dùng thử và xem công thức cập nhật tự động."]
["Khám phá bên dưới để biết thêm chi tiết",null,"Trái_cây","SUMIF",null,"Trái_cây","Loại","SUMIFS"]
["Bước tiếp theo",null,"Táo",null,null,"Cam","Florida"]
["Hàm có điều kiện - COUNTIF"]
["COUNTIF và COUNTIFS cho phép bạn đếm số giá trị trong một dải ô theo tiêu chí bạn chỉ định. Các hàm này hơi khác một chút so với các hàm IF và IFS ở chỗ các hàm này chỉ có một phạm vi tiêu chí và tiêu chí. Các hàm này không đánh giá một dải ô rồi tìm trong dải ô khác để tính tổng."]
["Chọn ô D64 và nhập =COUNTIF(C50:C61;C64). Hàm COUNTIF có cấu trúc như sau:"]
[{"$f":"COUNTIF(C50:C61,C64)","v":3}]
["Bạn muốn xem dải ô nào?"]
["Bạn muốn tìm kiếm giá trị (văn bản hoặc số) nào?"]
["Hàm COUNTIFS tương tự như hàm SUMIF, chỉ khác ở chỗ hàm này cho phép bạn dùng nhiều tiêu chí. Vì vậy, trong ví dụ này, bạn có thể tìm đồng thời cả Trái_cây lẫn Loại, thay vì chỉ bằng Trái_cây. Chọn ô H64 rồi nhập =COUNTIFS(F50:F61;F64;G50:G61;G64). Hàm COUNTIFS có cấu trúc như sau:\n"]
[{"$f":"COUNTIFS(F50:F61,F64,G50:G61,G64)","v":1}]
["Đây là dải ô đầu tiên sẽ được đếm"]
["Đây là tiêu chí dành cho kết quả khớp đầu tiên"]
["Đây là dải ô thứ hai sẽ được đếm"]
["Đây là tiêu chí dành cho kết quả khớp thứ hai"]
["Khám phá bên dưới để biết thêm chi tiết"]
["Tiếp theo"]
["Thêm các hàm có điều kiện"]
["Bạn đã thấy các hàm SUMIF, SUMIFS, COUNTIF và COUNTIFS. Giờ đây, bạn có thể tự thử với các hàm khác, như AVERAGEIF/S, MAXIFS, MINIFS. Tất cả đều có cấu trúc tương tự nhau, vì vậy, sau khi bạn đã viết ra một công thức, bạn có thể chỉ cần thay tên hàm bằng tên hàm bạn muốn. Chúng tôi đã viết tất cả các hàm bạn sẽ cần cho ô E106, để bạn có thể sao chép/dán ở đây hoặc thực hành nhập thủ công.\n\nSUMIF \t=SUMIF(C92:C103;C106;E92:E103) \nSUMIFS \t=SUMIFS(E92:E103;C92:C103;C106;D92:D103;D106) \nAVERAGEIF \t=AVERAGEIF(C92:C103;C106;E92:E103) \nAVERAGEIFS\t=AVERAGEIFS(E92:E103;C92:C103;C106;D92:D103;D106)\nCOUNTIF \t=COUNTIF(C92:C103;C106)\nCOUNTIFS \t=COUNTIFS(C92:C103;C106;D92:D103;D106) \nMAXIFS \t=MAXIFS(E92:E103;C92:C103;C106;D92:D103;D106)\nMINIFS \t=MINIFS(E92:E103;C92:C103;C106;D92:D103;D106)"]
["Khám phá bên dưới để biết thêm chi tiết"]
["Tiếp theo"]
["Hàm SUMIF có một tham đối giá trị"]
["Đây là ví dụ về cách sử dụng hàm SUMIF với dấu lớn hơn (>) để tìm tất cả giá trị lớn hơn một lượng nhất định:"]
[{"$f":"SUMIF(D118:D122,\">=50\")","v":200}]
["Tính tổng một số giá trị dựa trên tiêu chí này:"]
["...Xem lần lượt các ô này...\n "]
["...và nếu giá trị lớn hơn 50 thì tính vào tổng.\n "]
["LƯU Ý: Nếu bạn nhận thấy mình đang tạo quá nhiều công thức có điều kiện thì có thể bạn sẽ thấy PivotTable là giải pháp hiệu quả hơn. Hãy xem bài viết về PivotTable này để biết thêm thông tin."]
["Xem thêm thông tin trên web"]
["Toàn bộ về hàm SUMIF"]
["Toàn bộ về hàm SUMIFS"]
["Toàn bộ về hàm COUNTIF"]
["Toàn bộ về hàm COUNTIFS"]
["Toàn bộ về hàm AVERAGEIF"]
["Toàn bộ về hàm AVERAGEIFS",null,"Trái_cây","Số lượng",null,"Trái_cây","Loại","Số lượng"]
["Toàn bộ về hàm MINIFS",null,"Táo",50,null,"Táo","Fuji",50]
["Toàn bộ về hàm MAXIFS",null,"Cam",20,null,"Cam","Florida",20]
["Tạo danh sách thả xuống",null,"Chuối",60,null,"Chuối","Cavendish",60]
["Đào tạo Excel trực tuyến miễn phí",null,"Chanh",40,null,"Chanh","Rough",40]
["Lên đầu trang",null,"Táo",50,null,"Táo","Honeycrisp",50]
["Tiếp theo",null,"Cam",20,null,"Cam","Navel",20]
[null,null,"Chuối",60,null,"Chuối","Lady Finger",60]
[null,null,"Chanh",40,null,"Chanh","Eureka",40]
[null,null,"Táo",50,null,"Táo","Honeycrisp",50]
[null,null,"Cam",20,null,"Cam","Navel",20]
[null,null,"Chuối",60,null,"Chuối","Cavendish",60]
[null,null,"Chanh",40,null,"Chanh","Eureka",40]
[]
[null,null,"Trái_cây","COUNTIF",null,"Trái_cây","Loại","COUNTIFS"]
[null,null,"Táo",{"$f":"COUNTIF(C50:C61,C64)","v":3},null,"Cam","Florida",{"$f":"COUNTIFS(F50:F61,F64,G50:G61,G64)","v":1}]
{"$rows_empty":26}
[null,null,"Trái_cây","Loại","Số lượng"]
[null,null,"Táo","Fuji",50]
[null,null,"Cam","Florida",20]
[null,null,"Chuối","Cavendish",60]
[null,null,"Chanh","Rough",40]
[null,null,"Táo","Honeycrisp",50]
[null,null,"Cam","Navel",20]
[null,null,"Chuối","Lady Finger",60]
[null,null,"Chanh","Eureka",40]
[null,null,"Táo","Honeycrisp",50]
[null,null,"Cam","Navel",20]
[null,null,"Chuối","Cavendish",60]
[null,null,"Chanh","Eureka",40]
[]
[null,null,"Trái_cây","Loại","Dùng thử"]
[null,null,"Chanh","Eureka",{"$f":"AVERAGEIFS(E92:E103,C92:C103,C106,D92:D103,D106)","v":40}]
{"$rows_empty":10}
[null,null,"Mặt hàng","Số lượng"]
[null,null,"Bánh mì",50]
[null,null,"Bánh rán",100]
[null,null,"Bánh quy",40]
[null,null,"Bánh ngọt",50]
[null,null,"Bánh nướng",20]
[{"$nulls":3},{"$f":"SUMIF(D118:D122,\">=50\")","v":200}]

{"sheet":"Trình hướng dẫn Hàm","index":10,"n_rows":14,"n_cols":4,"rows_kept":14}
["Để Trình hướng dẫn Hàm hướng dẫn bạn"]
["Nếu biết tên của hàm bạn muốn nhưng bạn lại không chắc chắn cách dựng hàm đó như thế nào, bạn có thể sử dụng Trình hướng dẫn Hàm để giúp bạn.\n"]
["Chọn ô D10, sau đó đi đến Công thức > Chèn Hàm > nhập VLOOKUP vào hộp Tìm kiếm hàm, rồi nhấn ĐI. Khi bạn thấy hàm VLOOKUP được tô sáng, hãy bấm OK ở dưới cùng. Khi chọn hàm trong danh sách, Excel sẽ hiển thị cú pháp của hàm đó.\n"]
["Tiếp theo, nhập tham đối của hàm trong hộp văn bản tương ứng của hàm. Khi bạn nhập từng hàm, Excel sẽ đánh giá hàm đó và hiển thị cho bạn kết quả, với kết quả cuối cùng ở dưới cùng. Khi bạn nhập từng mục, các tiêu chí cho mỗi tham đối được liệt kê ở dưới cùng của biểu mẫu. Nhấn OK khi bạn thực hiện xong và Excel sẽ nhập công thức cho bạn.\n\n\n",null,"Trái_cây","Số lượng"]
["HÃY THỬ XEM\nBạn sẽ có được kết quả là =VLOOKUP(C10;C5:D8;2;FALSE)",null,"Táo",50]
["ĐIỀU CẦN BIẾT\nBạn có thể nhập tham chiếu ô và dải ô hoặc chọn bằng chuột của bạn.",null,"Cam",20]
["ĐIỀU CẦN BIẾT\nKhi bạn nhập từng mục của tham đối, mô tả của tham đối sẽ được hiển thị về phía dưới cùng của mẫu, bên trên kết quả Công thức.\n",null,"Chuối",60]
["Trước đó",null,"Chanh",40]
["Tiếp theo"]
["Xem thêm thông tin trên web",null,"Táo",{"$f":"VLOOKUP(C10,C5:D8,2,FALSE)","v":50}]
["Tổng quan về công thức trong Excel"]
["Các hàm Excel (theo thể loại)"]
["Các hàm Excel (theo thứ tự bảng chữ cái)"]
["Đào tạo Excel trực tuyến miễn phí"]

{"sheet":"Lỗi Công thức","index":11,"n_rows":36,"n_cols":4,"rows_kept":36}
["Khắc phục lỗi công thức"]
["Đến lúc nào đó, bạn sẽ gặp công thức có lỗi mà Excel hiển thị kết quả là #ErrorName. Lỗi là thứ có thể sẽ giúp ích vì chúng chỉ báo khi có thứ không đúng, tuy nhiên, việc khắc phục có thể lại không dễ dàng. May thay, có nhiều tùy chọn có thể giúp bạn tìm ra nguyên nhân gây ra lỗi và khắc phục.\n"]
["Kiểm tra lỗi - Đi đến Công thức > Kiểm tra Lỗi. Tùy chọn này sẽ tải một hộp thoại cho bạn biết nguyên nhân chung gây ra lỗi cụ thể. Trong ô D9, lỗi #N/A xảy ra vì không có giá trị khớp với \"Táo1\". Bạn có thể khắc phục lỗi này bằng cách sử dụng một giá trị hiện có, ngăn lỗi bằng hàm IFERROR hoặc bỏ qua lỗi đó và biết rằng lỗi này sẽ tự biến mất khi bạn sử dụng một giá trị hiện có.\n",null,"Trái_cây","Số lượng"]
["Nếu bấm vào Trợ giúp về Lỗi này, thông báo trình bày chủ đề trợ giúp riêng của lỗi sẽ mở ra. Nếu bạn bấm vào Hiển thị các bước tính toán, hộp thoại Đánh giá Công yhức sẽ được tải.\n",null,"Táo",50]
["Mỗi khi bấm vào Đánh giá, Excel sẽ đi qua từng mục một của công thức. Excel không hẳn là cho bạn biết lý do tại sao xảy ra lỗi nhưng sẽ chỉ ra vị trí lỗi. Từ đó, hãy tra cứu chủ đề trợ giúp để kết luận xem công thức của bạn có chỗ nào không đúng.\n",null,"Cam",20]
["THỬ NGHIỆM\nCó gì không đúng ở đây? Gợi ý: Chúng ta đang thử TÍNH TỔNG tất cả các mục.",null,"Chuối",60]
["ĐIỀU CẦN BIẾT\nBấm vào Tùy chọn sẽ giúp bạn đặt quy tắc về việc lỗi trong Excel được hiển thị hoặc bị bỏ qua.\n",null,"Chanh",40]
["Trước đó"]
["Tiếp theo",null,"Táo1",{"$f":"VLOOKUP(C9,C3:D7,2,FALSE)","v":{"$error":"#N/A"}}]
["Xem thêm thông tin trên web"]
["Phát hiện lỗi trong các công thức"]
["Làm thế nào để tránh công thức bị lỗi"]
["Ước lượng từng bước công thức lồng nhau"]
["Đào tạo Excel trực tuyến miễn phí"]
{"$rows_empty":15}
[null,null,"Trái_cây","Số lượng"]
[null,null,"Táo",50]
[null,null,"Cam",20]
[null,null,"Chuối",60]
[null,null,"Chanh",40]
[]
[null,null,"Tổng",{"$f":"sume(D31:D34)","v":{"$error":"#NAME?"}}]

{"sheet":"Tìm hiểu thêm","index":12,"n_rows":5,"n_cols":1,"rows_kept":5}
["Bạn có câu hỏi khác về Excel?"]
["Nhấn ALT+Q, rồi nhập điều bạn muốn biết."]
["Hãy tiếp tục khám phá. Excel còn nhiều điều chờ bạn tìm hiểu:"]
["Cộng đồng: Đặt câu hỏi và kết nối với những người yêu thích Excel khác.\n"]
["Có thêm gì mới?\nNgười đăng ký Office 365 sẽ nhận được các bản cập nhật liên tục và tính năng mới.\n\n"]